fUST/lending_fUST_20240825
["ID","MTS","AMOUNT","RATE_DAILY","PERIOD"]
[335873239,1724565040553,-153.0,0.00013,2]
[335873241,1724565040563,-154.82388285,0.00013025,4]
[335873243,1724565040573,-153.0,0.000131,2]
[335873245,1724565040583,-207.6847689,0.000131,2]
[335873247,1724565040592,-153.0,0.000131,2]
[335873249,1724565040601,-465.00002734,0.00013338,2]
[335873251,1724565040610,-150.0,0.00013424,2]
[335873253,1724565040619,-522.0,0.00013424,2]
[335873255,1724565040628,-1416.0,0.00013424,2]
[335873257,1724565040639,-150.084,0.00013424,2]
[335873259,1724565040648,-239.702,0.00013424,2]
[335873261,1724565040658,-150.0,0.00013424,2]
[335873263,1724565040667,-153.0,0.00013425,2]
[335873265,1724565040676,-209.78094003,0.00013477,2]
[335873304,1724565041041,-6264.62619105,0.00013487,2]
[335873305,1724565041058,-501.21372147,0.00013497,2]
[335873306,1724565041067,-2000.0,0.000135,2]
[335873307,1724565041077,-2000.0,0.000135,3]
[335873308,1724565041088,-2000.0,0.000135,4]
[335873309,1724565041097,-2000.0,0.000135,5]
[335873310,1724565041107,-2000.0,0.000135,6]
[335873311,1724565041116,-151.0,0.000135,2]
[335873312,1724565041126,-501.21372145,0.00013522,2]
[335873313,1724565041135,-501.21372145,0.00013548,2]
[335873314,1724565041144,-501.21372145,0.00013573,2]
[335873315,1724565041153,-1810.79506476,0.0001358,2]
[335873316,1724565041163,-151.0,0.0001358,2]
[335873317,1724565041172,-150.01,0.00013586,2]
[335873318,1724565041182,-2495.54614063,0.00013586,2]
[335873319,1724565041191,-104467.556669,0.00013587,2]
[335873320,1724565041201,-151.0,0.00013587,2]
[335873321,1724565041210,-151.0,0.00013588,2]
[335873322,1724565041220,-104467.556669,0.00013588,2]
[335873323,1724565041229,-90565.36548253,0.00013597,2]
[335873324,1724565041238,-151.0,0.00013597,2]
[335873325,1724565041247,-501.21372145,0.00013598,2]
[335873326,1724565041256,-261.245362,0.00013598,2]
[335873327,1724565041266,-40000.0,0.00013598,2]
[335873328,1724565041276,-197.9190774,0.00013599,2]
[335873329,1724565041285,-18701.08710714,0.000136,2]
[335873330,1724565041294,-2454.52,0.000136,2]
[335873331,1724565041303,-300.307684,0.000136,4]
[335873332,1724565041312,-150.112233,0.000136,2]
[335873333,1724565041322,-150.112233,0.000136,2]
[335873334,1724565041331,-150.112233,0.000136,2]
[335873335,1724565041340,-150.112233,0.000136,2]
[335873336,1724565041349,-150.112233,0.000136,2]
[335873337,1724565041358,-150.112233,0.000136,2]
[335873338,1724565041368,-150.112233,0.000136,2]
[335873339,1724565041378,-150.112233,0.000136,2]
[335873340,1724565041387,-150.112233,0.000136,2]
[335873341,1724565041396,-150.112233,0.000136,2]
[335873342,1724565041406,-150.112233,0.000136,2]
[335873343,1724565041416,-150.112233,0.000136,2]
[335873344,1724565041426,-150.112233,0.000136,2]
[335873345,1724565041436,-150.112233,0.000136,2]
[335873346,1724565041446,-264.957798,0.000136,2]
[335873347,1724565041456,-560.99474391,0.00013673,2]
[335873348,1724565041465,-500.13304585,0.00013673,2]
[335873349,1724565041476,-600.0,0.00013676,2]
[335873350,1724565041487,-29354.58154959,0.00013677,2]
[335873374,1724565732227,500.45,0.00027,120]
[335873376,1724565872217,1074.0,0.00027,120]
[335873412,1724566240639,-811.79481334,0.00012629,2]
[335873413,1724566240649,-273.958763,0.00012877,2]
[335873414,1724566240659,-288.43492116,0.00012898,2]
[335873415,1724566240668,-154.91489322,0.00012934,2]
[335873416,1724566240678,-863.03675999,0.00013,2]
[335873417,1724566240687,-465.00000137,0.00013305,2]
[335873418,1724566240697,-197.9190774,0.00013333,2]
[335873419,1724566240706,-409.311066,0.000134,2]
[335873420,1724566240715,-5721.01586602,0.00013419,2]
[335873421,1724566240724,-300.0,0.00013499,2]
[335873422,1724566240734,-409.311066,0.000135,2]
[335873423,1724566240742,-409.311066,0.000135,2]
[335873424,1724566240751,-287.5292046,0.000135,2]
[335873425,1724566240761,-150.0,0.00013556,2]
[335873426,1724566240770,-150.0,0.00013556,2]
[335873427,1724566240779,-522.0,0.00013556,2]
[335873428,1724566240788,-1416.0,0.00013556,2]
[335873429,1724566240798,-167.07124049,0.00013588,2]
[335873430,1724566240808,-167.07124048,0.00013593,2]
[335873431,1724566240820,-1629.71555823,0.00013598,2]
[335873432,1724566240830,-167.07124048,0.00013598,2]
[335873433,1724566240842,-33439.72459186,0.00013598,2]
[335873434,1724566240852,-150.112233,0.000136,2]
[335873435,1724566240863,-150.112233,0.000136,2]
[335873436,1724566240872,-150.112233,0.000136,2]
[335873437,1724566240881,-150.112233,0.000136,2]
[335873438,1724566240890,-150.112233,0.000136,2]
[335873439,1724566240901,-264.957806,0.000136,2]
[335873440,1724566240910,-150.112233,0.000136,2]
[335873441,1724566240919,-150.112233,0.000136,2]
[335873442,1724566240928,-150.112234,0.000136,2]
[335873443,1724566240937,-2500.0086984,0.000136,2]
[335873444,1724566240947,-207.7527474,0.000136,2]
[335873445,1724566240957,-207.7527474,0.000136,2]
[335873446,1724566240967,-300.307684,0.000136,4]
[335873447,1724566240977,-305.4305498,0.000136,2]
[335873448,1724566240987,-1491.93271293,0.000136,15]
[335873449,1724566240996,-500.08558175,0.00013673,2]
[335873450,1724566241007,-500.13304585,0.00013673,2]
[335873451,1724566241016,-560.99474391,0.00013673,2]
[335873452,1724566241027,-150.01,0.00013676,2]
[335873453,1724566241038,-2079.62178386,0.00013676,2]
[335873454,1724566241049,-37279.4540154,0.00013677,2]
[335875878,1724566482806,497.0,0.00027,120]
[335875919,1724567320825,410.42681097,0.0001,2]
[335875989,1724567432575,-260.260824,0.00012877,2]
[335875991,1724567432586,-475.97658597,0.00013,2]
[335875993,1724567432597,-387.06017402,0.00013,2]
[335875995,1724567432607,-39.92198173,0.00013329,2]
[335875998,1724567432618,-436.33522896,0.00013329,2]
[335876000,1724567432631,-510.30323151,0.00013329,2]
[335876360,1724567440824,-4734.45542382,0.00013329,2]
[335876361,1724567440834,-300.0,0.00013499,2]
[335876362,1724567440845,-1000.0,0.000135,2]
[335876363,1724567440856,-1000.0,0.000135,3]
[335876364,1724567440866,-153.0,0.000135,2]
[335876365,1724567440875,-306.0,0.000135,2]
[335876366,1724567440884,-153.0,0.000135,2]
[335876367,1724567440893,-1416.0,0.00013567,2]
[335876369,1724567440904,-150.0,0.00013567,2]
[335876371,1724567440916,-522.0,0.00013567,2]
[335876373,1724567440925,-167.07124048,0.00013588,2]
[335876375,1724567440934,-72884.32470797,0.00013588,2]
[335876982,1724567446863,-1576.90595512,0.00013588,2]
[335876997,1724567446993,-1130.16334567,0.00013588,2]
[335880527,1724568252179,3836.61863142,0.0001211,2]
[335880540,1724568361008,300.0,0.00012109,2]
[335880542,1724568411941,1197.70302313,0.00012109,2]
[335880543,1724568414917,2113.64420883,0.00012109,2]
[335880544,1724568418574,271.61019222,0.00012109,2]
[335880545,1724568418872,13648.76437176,0.00012109,2]
[335880546,1724568419297,2712.56648168,0.00012109,2]
[335880547,1724568421046,300.0,0.00012109,2]
[335880548,1724568424395,1043.76620472,0.00012109,2]
[335880549,1724568426501,218.84437621,0.00012109,2]
[335880550,1724568429165,4723.60783065,0.00012109,2]
[335880551,1724568456503,218.84437621,0.00012109,2]
[335880553,1724568503442,2119.99688887,0.00012109,2]
[335880554,1724568508120,776.32422256,0.00012109,2]
[335880556,1724568526169,1027.79147018,0.00012109,2]
[335880567,1724568570012,218.55437313,0.00012109,2]
[335880594,1724568631702,-158.591212,0.0001246,2]
[335880596,1724568631713,-300.0,0.00012676,2]
[335880598,1724568631733,-500.0,0.00012677,2]
[335880600,1724568631744,-500.0,0.00012677,2]
[335880602,1724568631754,-500.0,0.00012677,2]
[335880604,1724568631764,-500.0,0.00012677,2]
[335880606,1724568631774,-500.0,0.00012677,2]
[335880608,1724568631783,-390.95,0.00012677,2]
[335880610,1724568631794,-263.230032,0.00012877,2]
[335880612,1724568631805,-863.03675999,0.00013,2]
[335880614,1724568631815,-209.78094003,0.00013025,2]
[335880616,1724568631825,-153.0,0.000131,2]
[335880617,1724568631834,-153.0,0.000131,2]
[335880618,1724568631843,-153.0,0.000132,2]
[335880619,1724568631853,-465.00000007,0.00013271,2]
[335880620,1724568631863,-5721.01586602,0.00013371,2]
[335880621,1724568631872,-167.07124048,0.00013497,2]
[335880622,1724568631881,-27877.64855455,0.00013497,2]
[335880661,1724568638010,-209.78094003,0.00012999,2]
[335880663,1724568638020,-14559.35211838,0.00013497,2]
[335880665,1724568638029,-415.5054948,0.000135,2]
[335880667,1724568638038,-305.4305498,0.000135,2]
[335880669,1724568638048,-153.0,0.000135,2]
[335880671,1724568638058,-150.0,0.00013559,2]
[335880673,1724568638067,-522.0,0.00013559,2]
[335880675,1724568638079,-1416.0,0.00013559,2]
[335880677,1724568638088,-243.43539166,0.0001358,2]
[335880679,1724568638098,-5802.72309803,0.00013588,2]
[335880683,1724568638125,-1993.3403427,0.00013588,2]
[335880763,1724568640036,-91845.60775985,0.00013588,2]
[335884549,1724568963653,300.0,0.00027,120]
[335884552,1724568989842,300.0,0.00027,120]
[335884553,1724569002049,300.0,0.00027,120]
[335884554,1724569020474,353.52245178,0.00025,60]
[335884583,1724569320961,433.53993,0.00025,60]
[335884594,1724569620775,2167.30721455,0.00011999,2]
[335884595,1724569634984,21010.23495071,0.00011999,2]
[335884603,1724569687515,1324.38026942,0.00011999,2]
[335884630,1724569792336,991.86933725,0.00011999,2]
[335884698,1724569831906,-412.00823506,0.0001212,2]
[335884712,1724569838094,-272.51755481,0.0001212,2]
[335884713,1724569838258,-216.18972137,0.0001212,2]
[335884714,1724569838270,-947.78462761,0.00012516,2]
[335884715,1724569838281,-155.80938785,0.00012516,2]
[335884716,1724569838291,-154.96566888,0.00012516,2]
[335884717,1724569838301,-727.61840845,0.00012516,2]
[335884718,1724569838311,-154.87067686,0.00012551,2]
[335884719,1724569838320,-602.94322686,0.00012551,2]
[335884720,1724569838332,-569.6147727,0.00012551,2]
[335884721,1724569838342,-725.11970321,0.00012551,2]
[335884722,1724569838352,-181.44979947,0.00012551,2]
[335884723,1724569838363,-301.54676379,0.00012551,2]
[335884724,1724569838373,-300.0,0.00012628,2]
[335884725,1724569838382,-155.0635174,0.00012629,4]
[335884726,1724569838394,-309.44300029,0.00012629,2]
[335884727,1724569838407,-403.97807828,0.00012629,2]
[335884728,1724569838416,-154.74467129,0.00012689,2]
[335884729,1724569838426,-695.14803561,0.00012689,2]
[335884730,1724569838436,-154.90868597,0.00012779,2]
[335884731,1724569838445,-267.826663,0.00012877,2]
[335884732,1724569838454,-153.0,0.00012878,2]
[335884733,1724569838464,-153.0,0.00012878,2]
[335884734,1724569838473,-275.5489458,0.00012886,2]
[335884735,1724569838483,-153.0,0.00012922,2]
[335884736,1724569838492,-301.15456176,0.00012934,2]
[335884737,1724569838501,-494.2095125,0.00012971,2]
[335884738,1724569838510,-153.0,0.00012978,2]
[335884739,1724569838520,-153.0,0.00012978,2]
[335884740,1724569838530,-154.795935,0.00012985,2]
[335884741,1724569838540,-154.98075119,0.00012985,2]
[335884742,1724569838550,-783.08259371,0.00013,2]
[335884743,1724569838560,-683.1299535,0.00013051,2]
[335884744,1724569838570,-5721.01586602,0.00013337,2]
[335884745,1724569838579,-1416.0,0.00013399,2]
[335884746,1724569838588,-153.0,0.000134,2]
[335884747,1724569838597,-252.46827457,0.00013477,2]
[335884748,1724569838607,-168.96894699,0.0001349,2]
[335884749,1724569838618,-154.74467129,0.00013497,2]
[335884750,1724569838629,-153.7180049,0.000135,2]
[335884751,1724569838639,-151.0,0.000135,2]
[335884752,1724569838649,-150.0,0.00013559,2]
[335884753,1724569838658,-150.0,0.00013559,2]
[335884754,1724569838667,-150.0,0.00013559,2]
[335884755,1724569838678,-522.0,0.00013559,2]
[335884756,1724569838687,-3279.8809076,0.0001358,4]
[335884757,1724569838698,-1629.71555823,0.0001358,2]
[335884758,1724569838711,-7328.60243389,0.00013586,2]
[335884759,1724569838721,-102074.771057,0.00013587,2]
[335884760,1724569838731,-266.605872,0.00013588,2]
[335884761,1724569838740,-266.605872,0.00013588,2]
[335884762,1724569838750,-102074.771057,0.0001359,2]
[335884763,1724569838759,-19592.18563821,0.00013597,2]
[335884868,1724569840404,-1032.58835,0.00013597,2]
[335884869,1724569840417,-802.8200889,0.00013597,2]
[335884870,1724569840429,-950.0453784,0.00013597,2]
[335884871,1724569840441,-881.17,0.00013597,2]
[335884872,1724569840453,-785.0220995,0.00013597,2]
[335884873,1724569840465,-808.84,0.00013597,2]
[335884874,1724569840476,-829.52,0.00013597,2]
[335884875,1724569840487,-850.71,0.00013597,2]
[335884876,1724569840498,-456.89,0.00013597,2]
[335884877,1724569840509,-1103.27658203,0.00013597,2]
[335884878,1724569840520,-659.78241,0.00013597,2]
[335884910,1724569843229,-154.85720824,0.00012516,2]
[335884912,1724569843240,-39288.74465497,0.00013597,2]
[335884914,1724569843249,-266.605872,0.00013597,2]
[335884916,1724569843259,-266.605872,0.00013597,2]
[335884917,1724569843269,-266.605872,0.00013598,2]
[335884918,1724569843278,-266.605872,0.00013598,2]
[335884919,1724569843288,-40000.0,0.00013598,2]
[335884920,1724569843299,-18701.08710714,0.000136,2]
[335884921,1724569843308,-2501.69073083,0.000136,2]
[335884922,1724569843318,-150.112233,0.000136,2]
[335884923,1724569843327,-150.112233,0.000136,2]
[335884924,1724569843336,-150.112233,0.000136,2]
[335884925,1724569843346,-150.112233,0.000136,2]
[335884926,1724569843356,-150.112233,0.000136,2]
[335884927,1724569843365,-150.112233,0.000136,2]
[335884928,1724569843375,-150.112233,0.000136,2]
[335884929,1724569843386,-150.112233,0.000136,2]
[335884930,1724569843397,-264.957803,0.000136,2]
[335884931,1724569843414,-150.112233,0.000136,2]
[335884932,1724569843428,-150.112233,0.000136,2]
[335884933,1724569843437,-150.112233,0.000136,2]
[335884934,1724569843448,-150.112233,0.000136,2]
[335884935,1724569843458,-150.112233,0.000136,2]
[335884936,1724569843468,-150.112233,0.000136,2]
[335884937,1724569843477,-150.112239,0.000136,2]
[335884938,1724569843488,-300.0,0.000136,4]
[335884939,1724569843499,-266.605872,0.000136,2]
[335884940,1724569843509,-266.605872,0.000136,2]
[335884942,1724569843519,-266.605872,0.00013666,2]
[335884944,1724569843531,-266.605872,0.00013666,2]
[335884946,1724569843542,-500.08558175,0.00013673,2]
[335884948,1724569843553,-500.13304585,0.00013673,2]
[335884949,1724569843563,-560.99474391,0.00013673,2]
[335884950,1724569843572,-500.0,0.00013673,2]
[335884951,1724569843582,-150.01,0.00013676,2]
[335884952,1724569843593,-2079.62178386,0.00013676,2]
[335884953,1724569843603,-266.605872,0.00013677,2]
[335884954,1724569843614,-266.605872,0.00013677,2]
[335884955,1724569843627,-204149.542114,0.00013677,2]
[335884956,1724569843637,-155.0,0.0001368,2]
[335884957,1724569843649,-87698.29421714,0.00013687,2]
[335884958,1724569843660,-266.605872,0.00013687,2]
[335884959,1724569843669,-266.605872,0.00013687,2]
[335884960,1724569843679,-209.78094003,0.00013697,2]
[335884961,1724569843689,-155.2592165,0.00013698,2]
[335884962,1724569843698,-460.64802256,0.00013698,2]
[335884963,1724569843708,-502.1655218,0.00013698,2]
[335884964,1724569843718,-500.0,0.00013698,2]
[335884965,1724569843728,-501.17150906,0.00013698,2]
[335884966,1724569843738,-500.0,0.00013698,2]
[335884967,1724569843747,-255.78727016,0.00013698,2]
[335884968,1724569843756,-500.0,0.00013698,2]
[335884969,1724569843767,-500.0,0.00013698,2]
[335884970,1724569843778,-501.16749687,0.00013698,2]
[335884971,1724569843787,-616.21891281,0.00013698,2]
[335884972,1724569843797,-500.0,0.00013698,2]
[335884973,1724569843807,-500.0,0.00013698,2]
[335884974,1724569843817,-507.66471492,0.00013698,2]
[335884975,1724569843827,-500.0,0.00013698,2]
[335884976,1724569843838,-500.0,0.00013698,2]
[335884977,1724569843850,-500.0,0.00013698,2]
[335884978,1724569843860,-502.52031506,0.00013698,2]
[335884979,1724569843869,-500.0,0.00013698,2]
[335884980,1724569843879,-500.0,0.00013698,2]
[335884981,1724569843890,-500.0,0.00013698,2]
[335884982,1724569843900,-500.0,0.00013698,2]
[335884983,1724569843910,-500.0,0.00013698,2]
[335884984,1724569843921,-525.95,0.00013698,2]
[335884985,1724569844248,-500.0,0.00013698,2]
[335884986,1724569844258,-500.0,0.00013698,2]
[335884987,1724569844269,-500.0,0.00013698,2]
[335884988,1724569844278,-500.0,0.00013698,2]
[335884989,1724569844288,-500.0,0.00013698,2]
[335884990,1724569844298,-500.0,0.00013698,2]
[335884991,1724569844307,-500.0,0.00013698,2]
[335884992,1724569844317,-500.0,0.00013698,2]
[335884993,1724569844327,-500.0,0.00013698,2]
[335884994,1724569844337,-500.0,0.00013698,2]
[335884995,1724569844346,-500.0,0.00013698,2]
[335884996,1724569844356,-500.0,0.00013698,2]
[335884997,1724569844366,-500.0,0.00013698,2]
[335884998,1724569844380,-500.0,0.00013698,2]
[335884999,1724569844393,-500.0,0.00013698,2]
[335885000,1724569844403,-500.0,0.00013698,2]
[335885001,1724569844413,-580.99638008,0.00013698,2]
[335885002,1724569844423,-848.59,0.00013698,2]
[335885003,1724569844433,-500.0,0.00013698,2]
[335885004,1724569844443,-500.0,0.00013698,2]
[335885005,1724569844452,-500.0,0.00013698,2]
[335885006,1724569844462,-500.0,0.00013698,2]
[335885007,1724569844472,-518.96,0.00013698,2]
[335885008,1724569844482,-513.84816767,0.00013698,2]
[335885009,1724569844491,-500.0,0.00013698,2]
[335885010,1724569844500,-500.0,0.00013698,2]
[335885011,1724569844510,-500.0,0.00013698,2]
[335885012,1724569844519,-500.0,0.00013698,2]
[335885013,1724569844528,-500.0,0.00013698,2]
[335885014,1724569844537,-500.0,0.00013698,2]
[335885015,1724569844546,-500.0,0.00013698,2]
[335885016,1724569844555,-562.04345726,0.00013698,2]
[335885017,1724569844565,-883.94,0.00013698,2]
[335885018,1724569844574,-500.0,0.00013698,2]
[335885019,1724569844583,-500.0,0.00013698,2]
[335885020,1724569844593,-500.0,0.00013698,2]
[335885021,1724569844602,-500.0,0.00013698,2]
[335885022,1724569844611,-515.43,0.00013698,2]
[335885023,1724569844621,-500.54106135,0.00013698,2]
[335885024,1724569844630,-500.90712223,0.00013698,2]
[335885025,1724569844643,-500.0,0.00013698,2]
[335885026,1724569844653,-500.0,0.00013698,2]
[335885027,1724569844663,-500.0,0.00013698,2]
[335885028,1724569844672,-980.28,0.00013698,2]
[335885029,1724569844683,-682.37,0.00013698,2]
[335885030,1724569844692,-500.0,0.00013698,2]
[335885031,1724569844702,-500.0,0.00013698,2]
[335885032,1724569844711,-500.0,0.00013698,2]
[335885033,1724569844720,-500.0,0.00013698,2]
[335885034,1724569844729,-500.0,0.00013698,2]
[335885035,1724569844739,-500.0,0.00013698,2]
[335885036,1724569844748,-500.0,0.00013698,2]
[335885037,1724569844757,-645.83,0.00013698,2]
[335885038,1724569844766,-500.0,0.00013698,2]
[335885039,1724569844776,-500.1,0.00013698,2]
[335885040,1724569844786,-500.0,0.00013698,2]
[335885041,1724569844795,-500.0,0.00013698,2]
[335885042,1724569844804,-682.77,0.00013698,2]
[335885043,1724569844813,-500.0,0.00013698,2]
[335885044,1724569844823,-681.78,0.00013698,2]
[335885045,1724569844832,-500.0,0.00013698,2]
[335885046,1724569844845,-795.1,0.00013698,2]
[335885047,1724569844855,-500.0,0.00013698,2]
[335885048,1724569844864,-501.22684419,0.00013698,2]
[335885049,1724569844874,-500.0,0.00013698,2]
[335885050,1724569844884,-500.0,0.00013698,2]
[335885051,1724569844896,-500.0,0.00013698,2]
[335885052,1724569844906,-500.0,0.00013698,2]
[335885053,1724569844915,-500.0,0.00013698,2]
[335885054,1724569844927,-500.0,0.00013698,2]
[335885055,1724569844936,-527.77158515,0.00013698,2]
[335885056,1724569844946,-500.0,0.00013698,2]
[335885057,1724569844955,-500.0,0.00013698,2]
[335885058,1724569844965,-500.0,0.00013698,2]
[335885059,1724569844975,-500.0,0.00013698,2]
[335885060,1724569844984,-502.85941339,0.00013698,2]
[335885061,1724569844994,-502.11746487,0.00013698,2]
[335885062,1724569845003,-293.59894148,0.00013698,2]
[335885063,1724569845013,-904.46,0.00013698,2]
[335885064,1724569845023,-500.0,0.00013698,2]
[335885065,1724569845033,-501.4010802,0.00013698,2]
[335885066,1724569845042,-500.0,0.00013698,2]
[335885067,1724569845051,-473.4629534,0.00013698,2]
[335885068,1724569845061,-500.0,0.00013698,2]
[335885069,1724569845070,-881.65,0.00013698,2]
[335885070,1724569845079,-500.0,0.00013698,2]
[335885071,1724569845088,-500.0,0.00013698,2]
[335885072,1724569845098,-500.0,0.00013698,2]
[335885073,1724569845107,-500.0,0.00013698,2]
[335885074,1724569845116,-500.0,0.00013698,2]
[335885075,1724569845126,-521.51222689,0.00013698,2]
[335885076,1724569845135,-442.70142694,0.00013698,2]
[335885077,1724569845146,-262.31899289,0.00013698,2]
[335885078,1724569845155,-500.0,0.00013698,2]
[335885079,1724569845165,-500.0,0.00013698,2]
[335885080,1724569845175,-500.63741266,0.00013698,2]
[335885081,1724569845185,-500.0,0.00013698,2]
[335885082,1724569845194,-500.0,0.00013698,2]
[335885083,1724569845204,-520.15,0.00013698,2]
[335885084,1724569845213,-500.43180736,0.00013698,2]
[335885085,1724569845223,-500.0,0.00013698,2]
[335885086,1724569845232,-423.68170468,0.00013698,2]
[335885087,1724569845241,-756.1,0.00013698,2]
[335885088,1724569845250,-500.0,0.00013698,2]
[335885089,1724569845259,-736.29,0.00013698,2]
[335885090,1724569845269,-500.0,0.00013698,2]
[335885091,1724569845278,-500.0,0.00013698,2]
[335885092,1724569845287,-500.0,0.00013698,2]
[335885093,1724569845297,-500.0,0.00013698,2]
[335885094,1724569845306,-500.0,0.00013698,2]
[335885095,1724569845316,-500.0,0.00013698,2]
[335885096,1724569845325,-500.0,0.00013698,2]
[335885097,1724569845334,-763.87,0.00013698,2]
[335885098,1724569845343,-698.89,0.00013698,2]
[335885099,1724569845352,-500.0,0.00013698,2]
[335885100,1724569845362,-500.0,0.00013698,2]
[335885101,1724569845371,-814.29,0.00013698,2]
[335885102,1724569845380,-500.0,0.00013698,2]
[335885103,1724569845391,-501.92678512,0.00013698,2]
[335885104,1724569845400,-500.0,0.00013698,2]
[335885105,1724569845410,-719.7,0.00013698,2]
[335885106,1724569845419,-500.0,0.00013698,2]
[335885107,1724569845429,-500.0,0.00013698,2]
[335885108,1724569845438,-500.0,0.00013698,2]
[335885109,1724569845447,-500.0,0.00013698,2]
[335885110,1724569845457,-500.0,0.00013698,2]
[335885111,1724569845466,-500.0,0.00013698,2]
[335885112,1724569845476,-643.88,0.00013698,2]
[335885113,1724569845486,-516.39210821,0.00013698,2]
[335885114,1724569845495,-573.99,0.00013698,2]
[335885115,1724569845504,-500.0,0.00013698,2]
[335885118,1724569845514,-500.0,0.00013698,2]
[335885120,1724569845524,-500.0,0.00013698,2]
[335885121,1724569845534,-503.03061336,0.00013698,2]
[335885122,1724569845544,-500.17349798,0.00013698,2]
[335885123,1724569845554,-500.0,0.00013698,2]
[335885124,1724569845563,-907.25,0.00013698,2]
[335885125,1724569845572,-500.0,0.00013698,2]
[335885126,1724569845582,-500.0,0.00013698,2]
[335885127,1724569845591,-500.0,0.00013698,2]
[335885128,1724569845601,-500.0,0.00013698,2]
[335885129,1724569845610,-500.0,0.00013698,2]
[335885130,1724569845619,-500.0,0.00013698,2]
[335885131,1724569845628,-500.0,0.00013698,2]
[335885132,1724569845638,-500.0,0.00013698,2]
[335885133,1724569845649,-500.0,0.00013698,2]
[335885134,1724569845668,-836.49,0.00013698,2]
[335885135,1724569845678,-500.0,0.00013698,2]
[335885136,1724569845687,-831.58,0.00013698,2]
[335885137,1724569845696,-668.34,0.00013698,2]
[335885138,1724569845705,-519.38556481,0.00013698,2]
[335885139,1724569845714,-500.0,0.00013698,2]
[335885140,1724569845723,-500.0,0.00013698,2]
[335885141,1724569845732,-503.95,0.00013698,2]
[335885142,1724569845741,-500.0,0.00013698,2]
[335885143,1724569845751,-500.0,0.00013698,2]
[335885144,1724569845760,-500.0,0.00013698,2]
[335885145,1724569845770,-500.0,0.00013698,2]
[335885146,1724569845780,-500.0,0.00013698,2]
[335885147,1724569845789,-500.0,0.00013698,2]
[335885148,1724569845799,-500.0,0.00013698,2]
[335885149,1724569845809,-630.62,0.00013698,2]
[335885150,1724569845818,-500.0,0.00013698,2]
[335885151,1724569845827,-676.75,0.00013698,2]
[335885152,1724569845837,-500.0,0.00013698,2]
[335885153,1724569845846,-500.72831357,0.00013698,2]
[335885154,1724569845857,-500.0,0.00013698,2]
[335885155,1724569845866,-551.1752596,0.00013698,2]
[335885156,1724569845877,-500.0,0.00013698,2]
[335885157,1724569845887,-817.1,0.00013698,2]
[335885158,1724569845903,-500.0,0.00013698,2]
[335885159,1724569845912,-500.0,0.00013698,2]
[335885160,1724569845922,-500.0,0.00013698,2]
[335885161,1724569845931,-687.74,0.00013698,2]
[335885162,1724569845940,-682.87,0.00013698,2]
[335885163,1724569845950,-511.62078241,0.00013698,2]
[335885164,1724569845961,-500.0,0.00013698,2]
[335885165,1724569845970,-500.0,0.00013698,2]
[335885166,1724569845980,-501.12162947,0.00013698,2]
[335885167,1724569845990,-1118.91,0.00013698,2]
[335885168,1724569846001,-500.0,0.00013698,2]
[335885169,1724569846014,-150.0,0.00013698,2]
[335885170,1724569846026,-500.0,0.00013698,2]
[335885171,1724569846036,-500.0,0.00013698,2]
[335885172,1724569846046,-500.0,0.00013698,2]